bitfinex-derivatives/quotes_SOLF0:USTF0_20250113
["timestamp","ask_amount","ask_price","bid_price","bid_amount"]
[1736778650863,246.34393823,175.67,175.48,1.6656]
[1736778650864,32.85526494,175.62,175.48,1.6656]
[1736778651075,32.85526494,175.59,175.48,1.6656]
[1736778651669,2.8511,175.54,175.48,1.6656]
[1736778651866,6.58,175.55,175.48,1.6656]
[1736778652360,6.58,175.55,175.45,3.2942]
[1736778652566,32.85526494,175.53,175.46,2.8523]
[1736778652865,32.85526494,175.53,175.45,3.2942]
[1736778653070,32.85526494,175.53,175.43,2.8527]
[1736778653466,32.85526494,175.53,175.4,1.6574]
[1736778653869,2.8517,175.51,175.4,1.6574]
[1736778654272,32.85526494,175.5,175.4,1.6574]
[1736778655064,32.85526494,175.53,175.4,1.6574]
[1736778655266,6.62,175.54,175.4,1.6574]
[1736778655472,2.8514,175.52,175.4,1.6574]
[1736778655767,62.31411964,175.58,175.4,1.6574]
[1736778655768,68.93411964,175.55,175.45,32.85526494]
[1736778656369,6.62,175.55,175.45,32.85526494]
[1736778657471,6.62,175.55,175.41,32.85526494]
[1736778657668,2.8512,175.54,175.5,2.8517]
[1736778658079,6.62,175.55,175.41,32.85526494]
[1736778658276,2.8516,175.51,175.47,2.8521]
[1736778658473,32.85526494,175.53,175.4,1.6574]
[1736778658776,2.8522,175.47,175.42,2.853]
[1736778659177,2.8522,175.47,175.4,1.6574]
[1736778659374,2.8524,175.46,175.41,2.8531]
[1736778659577,6.64,175.48,175.39,3.2605]
[1736778660878,62.31411964,175.55,175.41,32.85526494]
[1736778661075,62.31411964,175.54,175.44,32.85526494]
[1736778661276,62.31411964,175.54,175.47,32.85526494]
[1736778661476,62.31411964,175.54,175.5,32.85526494]
[1736778661681,62.31411964,175.54,175.53,2.8512]
[1736778661873,62.31411964,175.59,175.48,5.0189]
[1736778662276,95.16938458,175.59,175.48,5.0189]
[1736778662470,95.16938458,175.59,175.44,32.85526494]
[1736778662684,2.8519,175.49,175.45,2.8523]
[1736778662980,6.64,175.51,175.42,3.3303]
[1736778663378,2.8517,175.5,175.46,2.8523]
[1736778663579,6.64,175.51,175.42,3.3303]
[1736778663779,2.8517,175.5,175.46,2.8523]
[1736778664073,6.64,175.51,175.42,3.3303]
[1736778664273,6.64,175.56,175.53,2.8512]
[1736778664476,6.64,175.56,175.47,32.85526494]
[1736778664678,62.31411964,175.57,175.48,1.6676]
[1736778664880,62.31411964,175.56,175.55,2.8509]
[1736778665679,62.31411964,175.56,175.51,3.3346]
[1736778665976,32.85526494,175.59,175.48,1.6676]
[1736778666183,32.85526494,175.56,175.43,3.2396]
[1736778666473,2.8515,175.52,175.43,3.2396]
[1736778666681,32.85526494,175.53,175.43,3.2396]
[1736778666882,32.85526494,175.5,175.35,225.85526494]
[1736778667073,32.85526494,175.5,175.4,2.8531]
[1736778667272,32.85526494,175.5,175.36,4.9049]
[1736778667678,32.85526494,175.47,175.36,4.9049]
[1736778667879,6.68,175.46,175.36,4.9049]
[1736778668177,2.8527,175.44,175.38,2.8535]
[1736778668379,2.8527,175.44,175.36,3.2396]
[1736778668581,6.68,175.46,175.36,3.2396]
[1736778668979,6.68,175.46,175.38,32.85526494]
[1736778669481,6.68,175.46,175.4,2.8532]
[1736778669677,6.68,175.46,175.38,32.85526494]
[1736778669981,2.8528,175.43,175.36,3.2396]
[1736778670278,6.68,175.46,175.36,3.2396]
[1736778671582,6.68,175.46,175.37,1.5942]
[1736778671983,6.68,175.46,175.42,2.8529]
[1736778672485,2.8527,175.44,175.39,2.8534]
[1736778672680,6.68,175.46,175.37,1.5942]
[1736778673082,32.85526494,175.45,175.37,1.5942]
[1736778673290,32.85526494,175.42,175.3,3.2339]
[1736778673488,32.85526494,175.45,175.3,36.08916494]
[1736778673685,6.74,175.44,175.3,36.08916494]
[1736778673989,6.74,175.44,175.33,32.85526494]
[1736778674390,6.74,175.44,175.36,32.85526494]
[1736778674592,6.74,175.44,175.37,1.7241]
[1736778674803,62.53608259,175.53,175.39,32.85526494]
[1736778674986,62.53608259,175.53,175.42,32.85526494]
[1736778675384,62.53608259,175.53,175.5,2.8517]
[1736778675586,6.76,175.54,175.42,32.85526494]
[1736778675993,39.61526494,175.54,175.4,3.3418]
[1736778676600,2.8518,175.5,175.44,2.8526]
[1736778676793,32.85526494,175.51,175.4,3.3418]
[1736778677593,6.78,175.5,175.4,3.3418]
[1736778678396,6.78,175.51,175.4,3.3418]
[1736778678590,32.85526494,175.57,175.42,32.85526494]
[1736778678789,2.8509,175.55,175.46,2.8523]
[1736778678987,6.78,175.56,175.45,32.85526494]
[1736778679191,6.78,175.56,175.46,1.6855]
[1736778679897,2.8513,175.53,175.47,2.8521]
[1736778680291,9.6308,175.56,175.49,2.8518]
[1736778680487,6.78,175.56,175.46,1.6855]
[1736778680690,6.78,175.56,175.42,32.85526494]
[1736778680897,2.8512,175.53,175.42,32.85526494]
[1736778681190,6.78,175.56,175.41,1.5799]
[1736778681396,2.8521,175.48,175.42,2.853]
[1736778681593,2.8521,175.48,175.41,1.5799]
[1736778681899,2.8523,175.47,175.4,3.3418]
[1736778682092,32.85526494,175.48,175.33,1.5799]
[1736778682287,32.85526494,175.42,175.33,4.9498]
[1736778682487,6.8,175.41,175.33,4.9498]
[1736778682693,6.8,175.41,175.33,3.3699]
[1736778683400,6.8,175.41,175.28,1.5799]
[1736778683590,2.8539,175.37,175.31,2.8546]
[1736778683995,6.8,175.41,175.28,4.8949]
[1736778684195,2.8536,175.39,175.32,2.8546]
[1736778684394,6.8,175.41,175.29,32.85526494]
[1736778684599,6.8,175.41,175.38,2.8536]
[1736778684991,32.85526494,175.48,175.32,32.85526494]
[1736778685193,6.8,175.46,175.32,32.85526494]
[1736778685399,6.8,175.46,175.4,2.8532]
[1736778685801,6.8,175.46,175.39,2.8533]
[1736778685802,2.8525,175.45,175.39,2.8533]
[1736778685995,6.8,175.46,175.36,1.6481]
[1736778686395,32.85526494,175.45,175.29,32.85526494]
[1736778686595,32.85526494,175.45,175.29,34.50336494]
[1736778686899,32.85526494,175.45,175.37,2.8536]
[1736778687199,6.8,175.46,175.29,34.50336494]
[1736778687605,32.85526494,175.43,175.29,1.6481]
[1736778688101,2.8535,175.39,175.33,2.8544]
[1736778688304,6.8,175.38,175.33,2.8544]
[1736778688498,6.8,175.38,175.29,1.6481]
[1736778688696,6.8,175.38,175.29,34.50336494]
[1736778689200,6.8,175.38,175.36,2.8539]
[1736778689405,6.8,175.38,175.29,1.6481]
[1736778689696,9.6537,175.38,175.33,2.8543]
[1736778690001,6.8,175.38,175.29,1.6481]
[1736778690794,6.8,175.38,175.28,3.315]
[1736778691103,32.85526494,175.37,175.25,500.0]
[1736778691495,6.82,175.4,175.26,32.85526494]
[1736778691999,6.82,175.4,175.25,500.0]
[1736778692400,32.85526494,175.35,175.25,500.0]
[1736778692706,32.85526494,175.32,175.25,500.0]
[1736778692909,6.84,175.31,175.25,500.0]
[1736778693300,2.8551,175.3,175.25,502.8557]
[1736778693506,6.84,175.31,175.25,500.0]
[1736778694302,32.85526494,175.26,175.25,491.3472]
[1736778694505,35.71086494,175.26,175.25,491.3472]
[1736778694807,32.85526494,175.26,175.25,491.3472]
[1736778695005,2.8554,175.28,175.25,491.3472]
[1736778695503,2.8549,175.3,175.25,491.3472]
[1736778695704,6.84,175.31,175.25,491.3472]
[1736778698110,32.85526494,175.29,175.25,491.3472]
[1736778698312,2.8556,175.26,175.25,491.3472]
[1736778698700,35.71086494,175.26,175.25,491.3472]
[1736778699210,32.85526494,175.29,175.25,491.3472]
[1736778699705,6.88,175.28,175.25,491.3472]
[1736778700804,2.8555,175.27,175.25,491.3472]
[1736778701004,6.88,175.28,175.25,491.3472]
[1736778701206,6.88,175.27,175.25,491.3472]
[1736778701910,2.8549,175.3,175.25,491.3472]
[1736778702107,32.85526494,175.32,175.25,491.3472]
[1736778702304,6.9,175.31,175.25,491.3472]
[1736778702904,32.85526494,175.29,175.25,491.3472]
[1736778703811,2.8556,175.26,175.25,491.3472]
[1736778704110,35.71086494,175.26,175.25,247.58776508]
[1736778704310,35.71086494,175.26,175.25,186.13789937]
[1736778704808,35.71086494,175.26,175.25,156.77729937]
[1736778705012,35.71086494,175.26,175.25,127.04269937]
[1736778706911,32.85526494,175.26,175.11,36.16196494]
[1736778707807,32.85526494,175.23,175.13,2.8576]
[1736778708111,6.9,175.22,175.11,3.3067]
[1736778708311,6.9,175.22,175.15,2.8572]
[1736778708508,6.9,175.22,175.11,3.3067]
[1736778709511,32.85526494,175.2,175.06,1.5974]
[1736778709709,32.85526494,175.2,175.06,4.8949]
[1736778709910,32.85526494,175.2,175.1,2.8581]
[1736778710411,6.9,175.22,175.13,2.8577]
[1736778710610,6.9,175.22,175.06,4.8949]
[1736778711012,6.9,175.22,175.12,2.8578]
[1736778711210,32.85526494,175.2,175.06,4.8949]
[1736778711613,32.85526494,175.2,175.11,2.8579]
[1736778712116,32.85526494,175.2,175.06,4.8949]
[1736778712316,32.85526494,175.16,175.06,3.2975]
[1736778712513,6.92,175.15,175.06,3.2975]
[1736778712815,6.92,175.15,175.07,32.85526494]
[1736778713405,6.92,175.15,175.09,2.8583]
[1736778713605,6.92,175.15,175.07,32.85526494]
[1736778714309,41.35473445,175.25,175.06,3.2975]
[1736778714512,6.94,175.24,175.1,32.85526494]
[1736778714815,6.94,175.24,175.11,1.7023]
[1736778715017,6.94,175.24,175.14,2.8574]
[1736778715522,6.94,175.24,175.15,2.8574]
[1736778715815,6.94,175.24,175.11,1.7023]
[1736778716009,32.85526494,175.22,175.11,1.7023]
[1736778716210,32.85526494,175.22,175.07,32.85526494]
[1736778716411,32.85526494,175.22,175.07,34.55756494]
[1736778716609,32.85526494,175.22,175.11,2.858]
[1736778716913,32.85526494,175.22,175.07,34.55756494]
[1736778717112,32.85526494,175.22,175.14,2.8574]
[1736778717314,32.85526494,175.22,175.07,34.55756494]
[1736778717616,32.85526494,175.22,175.14,2.8574]
[1736778718018,32.85526494,175.22,175.07,34.55756494]
[1736778719510,32.85526494,175.19,175.07,1.7023]
[1736778720015,32.85526494,175.16,175.06,3.2975]
[1736778720314,6.94,175.15,175.06,3.2975]
[1736778721015,6.94,175.15,175.08,2.8585]
[1736778721215,6.94,175.15,175.06,3.2975]
[1736778721416,6.96,175.22,175.1,32.85526494]
[1736778721717,71.0355521,175.25,175.16,32.85526494]
[1736778721923,59.94638259,175.25,175.19,32.85526494]
[1736778722112,59.94638259,175.25,175.2,1.6523]
[1736778722512,6.98,175.31,175.21,2.8564]
[1736778722708,6.98,175.31,175.2,1.6523]
[1736778722917,8.6084,175.31,175.2,1.6523]
[1736778723618,32.85526494,175.35,175.21,32.85526494]
[1736778723814,32.85526494,175.35,175.24,32.85526494]
[1736778723815,6.98,175.35,175.24,32.85526494]
[1736778724212,93.80412389,175.38,175.27,32.85526494]
[1736778724415,93.80412389,175.4,175.33,32.85526494]
[1736778724721,86.03762389,175.4,175.33,32.85526494]
[1736778724914,58.05772389,175.4,175.36,32.85526494]
[1736778725113,7.06,175.5,175.39,32.85526494]
[1736778725310,7.06,175.5,175.32,32.85526494]
[1736778725311,148.38393823,175.53,175.42,32.85526494]
[1736778725517,148.38393823,175.53,175.45,32.85526494]
[1736778725816,148.38393823,175.53,175.48,2.852]
[1736778726122,148.38393823,175.53,175.45,32.85526494]
[1736778726423,7.06,175.56,175.45,32.85526494]
[1736778727023,8.6884,175.57,175.45,32.85526494]
[1736778727325,7.06,175.59,175.48,32.85526494]
[1736778727616,7.06,175.59,175.41,32.85526494]
[1736778727617,7.06,175.59,175.45,32.85526494]
[1736778728222,32.85526494,175.57,175.42,32.85526494]
[1736778728412,32.85526494,175.54,175.4,2.8532]
[1736778728813,32.85526494,175.54,175.39,32.85526494]
[1736778730224,32.85526494,175.51,175.32,32.85526494]
[1736778730423,32.85526494,175.48,175.32,32.85526494]
[1736778731013,1.6693,175.49,175.32,32.85526494]
[1736778731218,1.6693,175.49,175.37,32.85526494]
[1736778731418,1.6693,175.49,175.38,2.8536]
[1736778731623,1.6693,175.49,175.34,32.85526494]
[1736778731824,32.85526494,175.48,175.34,32.85526494]
[1736778732026,34.54656494,175.48,175.35,2.854]
[1736778732227,34.54656494,175.48,175.31,32.85526494]
[1736778732826,32.85526494,175.45,175.31,32.85526494]
[1736778733327,32.85526494,175.42,175.28,35.71036494]
[1736778733519,8.7645,175.41,175.26,98.06]
[1736778733720,8.7645,175.41,175.28,35.71036494]
[1736778733926,32.85526494,175.39,175.22,32.85526494]
[1736778735125,32.85526494,175.39,175.25,32.85526494]
[1736778735426,1.6544,175.4,175.25,32.85526494]
[1736778735622,1.6544,175.4,175.3,2.8549]
[1736778735827,1.6544,175.4,175.25,32.85526494]
[1736778736024,32.85526494,175.37,175.23,32.85526494]
[1736778736622,1.6544,175.4,175.29,2.8551]
[1736778736820,1.6544,175.4,175.27,32.85526494]
[1736778737233,1.6544,175.4,175.3,2.8549]
[1736778737426,1.6544,175.4,175.23,32.85526494]
[1736778737621,1.6544,175.4,175.26,32.85526494]
[1736778737827,1.6544,175.4,175.31,2.8547]
[1736778738129,8.7645,175.41,175.29,32.85526494]
[1736778738521,8.7645,175.41,175.32,2.8545]
[1736778738727,7.06,175.42,175.32,32.85526494]
[1736778739827,7.06,175.42,175.29,32.85526494]
[1736778740024,7.06,175.42,175.23,225.85526494]
[1736778740025,32.85526494,175.41,175.26,32.85526494]
[1736778740426,32.85526494,175.41,175.31,2.8547]
[1736778740638,7.06,175.42,175.29,32.85526494]
[1736778741036,7.06,175.42,175.32,2.8546]
[1736778741338,32.85526494,175.41,175.26,32.85526494]
[1736778741835,7.06,175.42,175.29,32.85526494]
[1736778742037,7.06,175.42,175.33,2.8544]
[1736778742232,7.06,175.42,175.29,32.85526494]
[1736778742532,7.06,175.43,175.29,32.85526494]
[1736778742736,1.6777,175.47,175.35,32.85526494]
[1736778742939,7.08,175.47,175.35,32.85526494]
[1736778743133,7.08,175.47,175.38,32.85526494]
[1736778743335,1.6913,175.48,175.38,32.85526494]
[1736778743536,8.7424,175.49,175.38,32.85526494]
[1736778743537,7.12,175.49,175.38,32.85526494]
[1736778743732,1.6628,175.53,175.47,2.8521]
[1736778743931,7.1,175.54,175.44,32.85526494]
[1736778744337,7.1,175.54,175.51,2.8515]
[1736778744530,32.85526494,175.62,175.47,32.85526494]
[1736778744736,7.1,175.61,175.47,32.85526494]
[1736778745439,32.85526494,175.59,175.44,32.85526494]
[1736778745941,32.85526494,175.56,175.41,32.85526494]
[1736778746237,32.85526494,175.53,175.38,32.85526494]
[1736778746439,7.12,175.52,175.38,32.85526494]
[1736778746634,7.12,175.52,175.43,2.8528]
[1736778746937,7.12,175.52,175.38,32.85526494]
[1736778747129,32.85526494,175.5,175.38,2.8535]
[1736778747734,1.5811,175.51,175.38,2.8535]
[1736778747939,32.85526494,175.49,175.34,32.85526494]
[1736778748137,7.12,175.48,175.34,32.85526494]
[1736778748940,7.12,175.48,175.32,32.85526494]
[1736778749343,7.12,175.48,175.36,2.8538]
[1736778749547,7.12,175.48,175.32,32.85526494]
[1736778749842,32.85526494,175.47,175.32,32.85526494]
[1736778750041,32.85526494,175.44,175.31,0.4114]
[1736778750441,32.85526494,175.44,175.33,2.8543]
[1736778750644,32.85526494,175.44,175.31,0.4114]
[1736778751139,32.85526494,175.47,175.32,32.85526494]
[1736778752242,32.85526494,175.47,175.36,2.8538]
[1736778752438,32.85526494,175.47,175.32,32.85526494]
[1736778752740,32.85526494,175.44,175.33,2.8543]
[1736778752946,32.85526494,175.41,175.26,32.85526494]
[1736778753146,32.85526494,175.38,175.23,58.82074494]
[1736778753347,32.85526494,175.35,175.25,2.8557]
[1736778753539,32.85526494,175.32,175.23,25.96548]
[1736778753741,32.85526494,175.29,175.23,25.96548]
[1736778753947,7.14,175.28,175.23,25.96548]
[1736778755444,32.85526494,175.26,175.23,10.51428]
[1736778755644,32.85526494,175.26,175.23,4.92528]
[1736778756549,8.8254,175.28,175.23,4.92528]
[1736778757146,32.85526494,175.26,175.23,4.92528]
[1736778758146,32.85526494,175.26,175.23,2.12938]
[1736778758549,32.85526494,175.26,175.15,2.8572]
[1736778758749,32.85526494,175.23,175.08,32.85526494]
[1736778758941,32.85526494,175.23,175.09,1.829]
[1736778759449,32.85526494,175.2,175.09,1.829]
[1736778759644,7.12,175.19,175.09,1.829]
[1736778759851,7.1,175.21,175.09,1.829]
[1736778760948,7.1,175.21,175.12,2.8578]
[1736778761251,7.1,175.21,175.09,1.829]
[1736778761852,7.1,175.2,175.12,2.8578]
[1736778762053,7.1,175.2,175.09,1.829]
[1736778762250,7.1,175.2,175.11,32.85526494]
[1736778762459,7.1,175.2,175.18,2.8567]
[1736778762751,7.1,175.2,175.14,32.85526494]
[1736778763050,7.1,175.2,175.17,2.8569]
[1736778763352,7.08,175.25,175.14,32.85526494]
[1736778763554,7.08,175.25,175.18,2.8568]
[1736778763754,7.08,175.25,175.14,32.85526494]
[1736778764253,7.08,175.25,175.11,32.85526494]
[1736778764956,32.85526494,175.23,175.09,1.829]
[1736778765962,1.6854,175.28,175.09,1.829]
[1736778765963,7.1,175.22,175.11,32.85526494]
[1736778766357,7.1,175.22,175.09,1.829]
[1736778767157,7.1,175.22,175.14,32.85526494]
[1736778767853,1.6854,175.28,175.22,2.8562]
[1736778768154,7.12,175.29,175.2,32.85526494]
[1736778768454,7.12,175.3,175.21,1.8482]
[1736778769957,7.12,175.3,175.23,2.8559]
[1736778770156,7.12,175.3,175.21,1.8482]
[1736778770660,7.12,175.31,175.21,1.8482]
[1736778770860,3.6358,175.38,175.26,32.85526494]
[1736778771159,7.14,175.37,175.31,2.8547]
[1736778771457,7.14,175.37,175.26,32.85526494]
[1736778771657,7.14,175.37,175.31,2.8547]
[1736778772050,7.14,175.37,175.26,2.8555]
[1736778772350,32.85526494,175.35,175.21,3.7108]
[1736778772961,32.85526494,175.35,175.23,2.8559]
[1736778773161,32.85526494,175.35,175.21,3.7108]
[1736778773863,7.14,175.37,175.21,3.7108]
[1736778773864,32.85526494,175.32,175.21,3.7108]
[1736778774160,32.85526494,175.32,175.21,1.8482]
[1736778774353,32.85526494,175.29,175.15,3.4531]
[1736778774555,7.16,175.28,175.17,2.857]
[1736778774755,32.85526494,175.26,175.16,1.722]
[1736778775157,32.85526494,175.23,175.08,32.85526494]
[1736778775456,32.85526494,175.2,175.08,1.7965]
[1736778775665,7.16,175.19,175.08,1.7965]
[1736778776762,7.16,175.19,175.05,32.85526494]
[1736778776961,7.16,175.19,175.09,2.8582]
[1736778777158,8.8534,175.19,175.09,2.8582]
[1736778777361,32.85526494,175.17,175.06,1.7965]
[1736778777759,32.85526494,175.17,175.05,2.8588]
[1736778777964,1.7975,175.16,175.05,2.8588]
[1736778778162,1.7975,175.16,175.02,32.85526494]
[1736778778565,1.7975,175.16,175.05,32.85526494]
[1736778778864,1.7975,175.16,175.09,2.8583]
[1736778779063,1.7975,175.16,175.02,32.85526494]
[1736778779459,1.7975,175.16,175.07,2.8586]
[1736778779973,1.7975,175.16,175.02,32.85526494]
[1736778780467,32.85526494,175.14,175.01,1.7208]
[1736778780673,1.7975,175.16,175.01,1.7208]
[1736778780872,32.85526494,175.13,175.03,2.8593]
[1736778781167,32.85526494,175.09,174.82,275.91318056]
[1736778781377,32.85526494,175.06,174.91,32.85526494]
[1736778781564,7.14,175.07,174.94,32.85526494]
[1736778781771,7.14,175.07,174.97,32.85526494]
[1736778781971,7.14,175.07,174.94,32.85526494]
[1736778782472,7.14,175.07,174.97,2.8602]
[1736778782668,32.85526494,175.06,174.92,1.7527]
[1736778783076,32.85526494,175.09,174.94,32.85526494]
[1736778783272,7.14,175.08,174.97,32.85526494]
[1736778784374,7.14,175.08,175.0,2.8598]
[1736778784567,7.14,175.08,174.97,32.85526494]
[1736778784767,7.14,175.08,174.94,32.85526494]
[1736778785876,7.14,175.08,174.92,1.7527]
[1736778785877,32.85526494,175.07,174.92,1.7527]
[1736778786178,32.85526494,174.97,174.77,31.56135133]
[1736778786371,32.85526494,174.97,174.82,32.85526494]
[1736778786372,7.14,174.96,174.82,32.85526494]
[1736778786677,7.14,174.96,174.88,2.8618]
[1736778786979,7.14,174.96,174.82,32.85526494]
[1736778787571,7.14,174.96,174.89,2.8615]
[1736778787775,32.85526494,175.05,174.82,32.85526494]
[1736778787776,32.85526494,175.0,174.85,32.85526494]
[1736778787973,7.12,175.01,174.86,1.8448]
[1736778788377,32.85526494,174.95,174.86,1.8448]
[1736778788875,32.85526494,174.95,174.79,36.38876494]
[1736778789071,8.9105,174.94,174.8,1.8448]
[1736778789269,8.9105,174.94,174.84,2.8624]
[1736778789873,10.6819,174.94,174.84,2.8624]
[1736778790175,32.85526494,174.89,174.76,85.76497867]
[1736778790374,32.85526494,174.89,174.77,1.7126]
[1736778790678,32.85526494,174.89,174.82,2.8626]
[1736778791077,32.85526494,174.89,174.77,1.7126]
[1736778791380,32.85526494,174.8,174.62,63.18788056]
[1736778791677,32.85526494,174.72,174.67,2.8651]
[1736778791875,32.85526494,174.69,174.62,63.18788056]
[1736778792070,32.85526494,174.66,174.62,63.18788056]
[1736778792476,32.85526494,174.66,174.58,31.56135133]
[1736778792973,1.8497,174.68,174.58,31.56135133]
[1736778793279,1.8497,174.68,174.61,2.8662]
[1736778793475,1.8497,174.68,174.58,31.56135133]
[1736778793671,32.85526494,174.69,174.58,31.56135133]
[1736778793875,1.842,174.77,174.57,32.85526494]
[1736778793876,32.85526494,174.72,174.57,32.85526494]
[1736778794075,32.85526494,174.66,174.52,1.7126]
[1736778794379,32.85526494,174.69,174.58,2.8666]
[1736778794576,9.48,174.75,174.53,34.68556494]
[1736778794884,1.8317,174.76,174.42,207.0]
[1736778794885,32.85526494,174.72,174.42,207.0]
[1736778795078,32.85526494,174.62,174.46,32.85526494]
[1736778795380,42.75526494,174.62,174.46,32.85526494]
[1736778795783,32.85526494,174.63,174.46,32.85526494]
[1736778796274,32.85526494,174.66,174.49,32.85526494]
[1736778796477,32.85526494,174.66,174.52,32.85526494]
[1736778796681,9.94,174.68,174.56,2.867]
[1736778796876,9.94,174.68,174.55,32.85526494]
[1736778797281,9.94,174.68,174.58,32.85526494]
[1736778797681,46.37436494,174.75,174.66,2.8654]
[1736778797879,46.37436494,174.75,174.53,3.4746]
[1736778798078,32.85526494,174.78,174.64,32.85526494]
[1736778798279,32.85526494,174.78,174.69,2.8648]
[1736778798280,42.81526494,174.78,174.69,2.8648]
[1736778798482,32.85526494,174.72,174.58,32.85526494]
[1736778798776,32.85526494,174.69,174.59,1.7745]
[1736778798984,32.85526494,174.65,174.54,1.7745]
[1736778799278,32.85526494,174.62,174.48,32.85526494]
[1736778799479,32.85526494,174.62,174.49,1.7218]
[1736778800275,32.85526494,174.59,174.49,1.7218]
[1736778800480,42.83526494,174.59,174.49,1.7218]
[1736778801184,9.98,174.59,174.49,1.7218]
[1736778801883,42.83526494,174.59,174.49,1.7218]
[1736778802082,1.7659,174.58,174.49,1.7218]
[1736778802282,1.7659,174.58,174.33,32.85526494]
[1736778802283,32.85526494,174.53,174.33,32.85526494]
[1736778802483,32.85526494,174.53,174.39,32.85526494]
[1736778802880,32.85526494,174.53,174.47,2.8684]
[1736778803083,32.85526494,174.56,174.42,33.14751494]
[1736778803389,32.85526494,174.56,174.47,2.8684]
[1736778803583,32.85526494,174.53,174.47,2.8684]
[1736778803781,32.85526494,174.53,174.42,0.29225]
[1736778804279,32.85526494,174.56,174.48,2.8683]
[1736778804584,32.85526494,174.56,174.42,33.14751494]
[1736778804785,32.85526494,174.56,174.49,2.868]
[1736778804985,32.85526494,174.56,174.42,33.14751494]
[1736778805190,1.8328,174.57,174.45,32.85526494]
[1736778805379,1.7659,174.58,174.46,1.6867]
[1736778806080,1.7659,174.58,174.54,2.8673]
[1736778806586,9.98,174.59,174.57,2.8668]
[1736778807886,9.98,174.59,174.48,32.85526494]
[1736778808281,9.98,174.59,174.47,1.7071]
[1736778808482,9.98,174.59,174.56,2.867]
[1736778808682,42.83526494,174.59,174.46,1.6867]
[1736778808988,9.98,174.59,174.45,2.8687]
[1736778809182,32.85526494,174.5,174.42,0.29225]
[1736778809387,1.8064,174.49,174.42,0.29225]
[1736778811286,32.85526494,174.47,174.42,0.29225]
[1736778811489,32.85526494,174.47,174.41,2.8695]
[1736778811490,32.85526494,174.44,174.29,34.54206494]
[1736778811681,32.85526494,174.34,174.28,59.05036316]
[1736778812187,32.85526494,174.31,174.28,55.21362163]
[1736778812390,32.85526494,174.31,174.07,1.7384]
[1736778812391,32.85526494,174.29,173.93,7.7016125]
[1736778812591,32.85526494,174.09,174.01,1.14935923]
[1736778812889,32.85526494,174.12,174.06,2.8752]
[1736778813189,32.85526494,174.09,174.01,1.14935923]
[1736778813486,32.85526494,174.03,174.01,1.14935923]
[1736778813792,32.85526494,174.06,174.01,1.14935923]
[1736778813996,11.32,174.1,174.01,1.14935923]
[1736778814289,32.85526494,174.02,173.87,1.7384]
[1736778814486,32.85526494,173.89,173.61,214.7016125]
[1736778814686,33.18679708,173.77,173.61,7.7016125]
[1736778814883,33.18679708,173.97,173.62,33.18679708]
[1736778815193,33.18679708,173.88,173.61,7.7016125]
[1736778815395,33.18679708,173.81,173.62,33.18679708]
[1736778815597,33.18679708,173.77,173.69,2.8813]
[1736778815792,33.18679708,173.77,173.59,33.18679708]
[1736778815988,44.94679708,173.81,173.63,33.18679708]
[1736778816190,33.18679708,173.84,173.56,11.76]
[1736778816389,33.18679708,173.76,173.6,33.18679708]
[1736778816598,44.96679708,173.76,173.56,33.18679708]
[1736778816794,44.96679708,173.76,173.58,33.18679708]
[1736778817095,1.1504832,173.84,173.55,1.7569]
[1736778817096,33.18679708,173.78,173.55,208.7569]
[1736778817285,33.18679708,173.69,173.51,1.7232]
[1736778817693,12.44,173.77,173.53,33.18679708]
[1736778817886,33.18679708,173.66,173.51,1.7232]
[1736778818091,33.18679708,173.63,173.51,1.7232]
[1736778818392,33.18679708,173.6,173.52,1.15260488]
[1736778818789,33.18679708,173.57,173.5,2.8845]
[1736778819093,33.18679708,173.57,173.41,1.8512]
[1736778819695,33.18679708,173.54,173.41,1.8512]
[1736778819892,33.18679708,173.57,173.46,2.8852]
[1736778820097,33.18679708,173.54,173.41,1.8512]
[1736778820294,33.18679708,173.6,173.42,33.18679708]